bitfinex/quotes_BTCUSD_20251215
["timestamp","ask_amount","ask_price","bid_price","bid_amount"]
[1765831143295,0.48218097,86140.0,86116.0,0.75853133]
[1765831143296,0.26360898,86140.0,86116.0,0.75853133]
[1765831143493,0.26360898,86140.0,86116.0,0.76353133]
[1765831143494,0.01161008,86132.0,86116.0,0.76353133]
[1765831143740,0.25199998,86130.0,86116.0,0.67306572]
[1765831143918,0.01161076,86127.0,86116.0,0.67306572]
[1765831144116,0.01161089,86126.0,86116.0,0.64807774]
[1765831144323,0.01161116,86124.0,86116.0,0.35137774]
[1765831144521,0.232216,86127.0,86116.0,0.29180774]
[1765831144522,0.01161076,86127.0,86116.0,0.29180774]
[1765831144769,0.01161089,86126.0,86116.0,0.35537774]
[1765831145559,0.25199998,86130.0,86116.0,0.35537774]
[1765831145560,0.00199998,86130.0,86116.0,0.35253774]
[1765831145766,0.00199998,86130.0,86116.0,0.75969133]
[1765831146005,0.00199998,86130.0,86116.0,0.75069133]
[1765831146200,4.004e-05,86135.0,86116.0,0.75369133]
[1765831146337,4.004e-05,86135.0,86116.0,0.75669133]
[1765831146338,0.32,86118.0,86116.0,0.75669133]
[1765831146523,0.32,86118.0,86116.0,0.75369133]
[1765831146719,0.32,86118.0,86116.0,0.75069133]
[1765831146927,0.32,86118.0,86116.0,0.75469133]
[1765831147126,0.32,86118.0,86116.0,0.75069133]
[1765831147533,0.32,86118.0,86116.0,0.75469133]
[1765831149029,4.004e-05,86135.0,86134.0,0.23219634]
[1765831149182,4.004e-05,86135.0,86134.0,0.3897328]
[1765831149382,4.004e-05,86135.0,86134.0,0.4493028]
[1765831149706,0.09662871,86148.0,86147.0,0.07182]
[1765831149933,0.10823664,86148.0,86147.0,0.07182]
[1765831150723,0.10823664,86148.0,86139.0,0.01160914]
[1765831150724,0.24378445,86142.0,86138.0,0.30336387]
[1765831150905,0.23218228,86140.0,86138.0,0.09192]
[1765831151118,0.01160873,86142.0,86138.0,0.10352927]
[1765831151318,0.01160833,86145.0,86141.0,0.03947]
[1765831151681,0.0002,86151.0,86139.0,0.05957]
[1765831151682,0.0002,86151.0,86148.0,0.01160793]
[1765831151817,0.0002,86151.0,86149.0,0.23215591]
[1765831152423,0.01180752,86151.0,86147.0,0.01160806]
[1765831152626,0.24376106,86150.0,86147.0,0.01160806]
[1765831152996,0.01160766,86150.0,86147.0,0.01160806]
[1765831153204,0.24376088,86150.0,86149.0,0.001]
[1765831153348,0.24376402,86149.0,86146.0,0.0116082]
[1765831153792,0.24376402,86149.0,86147.0,0.001]
[1765831154136,0.01160766,86150.0,86147.0,0.23216113]
[1765831154354,0.01160806,86147.0,86141.0,0.01160887]
[1765831154743,0.24376894,86148.0,86145.0,0.24377245]
[1765831154952,0.01180752,86151.0,86150.0,0.23215322]
[1765831154953,0.0002,86151.0,86150.0,0.23215322]
[1765831155163,0.0002,86151.0,86150.0,0.03235]
[1765831155372,0.23235052,86151.0,86150.0,0.03235]
[1765831155709,0.0002,86151.0,86150.0,0.03235]
[1765831155910,0.0002,86151.0,86150.0,0.26450322]
[1765831156541,0.0002,86151.0,86150.0,0.36454322]
[1765831157657,0.0002,86151.0,86150.0,0.36554322]
[1765831157857,0.01096716,86151.0,86150.0,0.07382]
[1765831158208,0.01096716,86151.0,86150.0,0.30597322]
[1765831158406,0.01096716,86151.0,86150.0,0.36554322]
[1765831158606,0.01096716,86151.0,86150.0,0.07382]
[1765831158787,0.01096716,86151.0,86150.0,0.36554322]
[1765831159286,0.28624427,86152.0,86150.0,0.36554322]
[1765831159287,0.08331284,86152.0,86151.0,0.23215052]
[1765831159489,0.09409876,86152.0,86151.0,0.33119052]
[1765831159847,0.01078592,86152.0,86151.0,0.33119052]
[1765831160042,0.01180671,86157.0,86152.0,0.23214783]
[1765831160043,0.23213993,86155.0,86152.0,0.23214783]
[1765831160249,0.24374617,86156.0,86152.0,0.01160739]
[1765831160452,0.0002,86157.0,86156.0,0.30395705]
[1765831160653,0.0002,86157.0,86156.0,0.36352705]
[1765831160852,0.0002,86157.0,86156.0,0.13139]
[1765831161102,0.0002,86157.0,86156.0,0.36352705]
[1765831161529,0.23213435,86157.0,86156.0,0.13300287]
[1765831161701,0.23213337,86158.0,86156.0,0.07343287]
[1765831161913,0.01160577,86164.0,86156.0,0.07343287]
[1765831161914,0.04154022,86184.0,86165.0,0.05001839]
[1765831162109,0.04154022,86201.0,86200.0,0.34847215]
[1765831162285,0.04154022,86224.0,86203.0,0.63916407]
[1765831162489,0.01159729,86227.0,86203.0,0.64077694]
[1765831162876,0.03024,86228.0,86203.0,0.53514408]
[1765831163114,0.01159729,86227.0,86203.0,0.53514408]
[1765831163435,0.01159729,86227.0,86203.0,0.52432335]
[1765831163592,0.24354375,86227.0,86203.0,0.52432335]
[1765831163796,0.23195008,86226.0,86203.0,0.52432335]
[1765831163994,0.01159729,86227.0,86203.0,0.52732335]
[1765831164224,0.24363978,86229.0,86203.0,0.52732335]
[1765831164394,0.01159743,86226.0,86203.0,0.52732335]
[1765831164762,0.0115981,86221.0,86203.0,0.55669014]
[1765831164881,0.0115985,86218.0,86203.0,0.64377694]
[1765831165091,0.0115985,86218.0,86203.0,0.64277694]
[1765831165300,0.03024,86225.0,86203.0,0.25206335]
[1765831165301,0.01159904,86214.0,86203.0,0.25206335]
[1765831165505,0.0115989,86215.0,86203.0,0.25506335]
[1765831165722,0.01159904,86214.0,86203.0,0.25906335]
[1765831165924,0.23195952,86222.0,86203.0,0.25606335]
[1765831166149,0.06367,86223.0,86203.0,0.25206335]
[1765831166357,0.28024,86240.0,86203.0,0.25206335]
[1765831166358,0.01159716,86228.0,86203.0,0.26505734]
[1765831166559,0.01159716,86228.0,86203.0,0.26705734]
[1765831166560,0.23194687,86227.0,86203.0,0.26705734]
[1765831166785,0.01159769,86224.0,86203.0,0.26705734]
[1765831167119,0.01159837,86219.0,86203.0,0.26405734]
[1765831167298,0.01159729,86227.0,86203.0,0.26405734]
[1765831167451,0.01159796,86222.0,86203.0,0.26405734]
[1765831167653,0.01159756,86225.0,86203.0,0.26405734]
[1765831167654,0.24355533,86223.0,86203.0,0.26405734]
[1765831167857,0.01159823,86220.0,86203.0,0.26405734]
[1765831168063,0.01159837,86219.0,86203.0,0.26405734]
[1765831168397,0.01159823,86220.0,86203.0,0.26505734]
[1765831168599,0.01159837,86219.0,86203.0,0.26905734]
[1765831168833,0.01159823,86220.0,86203.0,0.26205734]
[1765831169045,0.0115981,86221.0,86203.0,0.26205734]
[1765831169252,0.0115981,86221.0,86203.0,0.26705734]
[1765831169429,0.01159783,86223.0,86203.0,0.26705734]
[1765831169865,0.23194723,86227.0,86203.0,0.26705734]
[1765831170070,0.04183796,86222.0,86203.0,0.00661287]
[1765831170304,0.23196294,86221.0,86203.0,0.02981391]
[1765831170506,0.24354734,86226.0,86203.0,0.00661287]
[1765831170703,0.0115981,86221.0,86203.0,0.1462675]
[1765831171022,0.03024,86227.0,86203.0,0.1462675]
[1765831171247,0.01159743,86226.0,86203.0,0.1442675]
[1765831171398,0.24355669,86223.0,86203.0,0.1442675]
[1765831171606,0.24356522,86220.0,86203.0,0.02681391]
[1765831171809,0.01159985,86208.0,86203.0,0.02005287]
[1765831172011,0.01159971,86209.0,86203.0,0.01540744]
[1765831172232,0.07028,86215.0,86203.0,0.01940744]
[1765831172233,0.0115989,86215.0,86203.0,0.01940744]
[1765831172418,0.23197642,86216.0,86203.0,0.01540744]
[1765831172680,0.01159877,86216.0,86203.0,0.01540744]
[1765831172862,0.24357802,86215.0,86203.0,0.01740744]
[1765831173105,0.01159877,86216.0,86203.0,0.01740744]
[1765831173297,0.0115989,86215.0,86203.0,0.01740744]
[1765831173516,0.01159904,86214.0,86203.0,0.01740744]
[1765831173800,0.01160012,86206.0,86203.0,0.01740744]
[1765831173942,0.03424,86207.0,86203.0,0.01740744]
[1765831174144,0.23200712,86205.0,86203.0,0.01579457]
[1765831174547,0.04555,86204.0,86203.0,0.01579457]
[1765831174749,0.11583,86204.0,86203.0,0.01579457]
[1765831174949,0.19493213,86204.0,86203.0,0.01579457]
[1765831175201,0.19493213,86204.0,86203.0,0.005]
[1765831176124,0.19493213,86204.0,86181.0,0.01844]
[1765831176125,0.01160092,86200.0,86195.0,0.23203166]
[1765831176330,0.34783884,86204.0,86181.0,0.01844]
[1765831176331,0.0002,86204.0,86202.0,0.23201197]
[1765831176543,0.0002,86204.0,86203.0,0.002]
[1765831177631,0.0002,86204.0,86202.0,0.2320125]
[1765831177924,0.0002,86204.0,86202.0,0.2330125]
[1765831178102,0.23220799,86204.0,86202.0,0.001]
[1765831178428,0.23201376,86202.0,86199.0,0.01160106]
[1765831178649,0.23201376,86202.0,86195.0,0.23203142]
[1765831178650,0.01160079,86201.0,86197.0,0.2436273]
[1765831178857,0.01160092,86200.0,86197.0,0.2436273]
[1765831179257,0.24381007,86204.0,86198.0,0.01160119]
[1765831179584,0.23201333,86202.0,86199.0,0.24562182]
[1765831179781,0.24361398,86202.0,86199.0,0.002]
[1765831179985,0.04535,86200.0,86199.0,0.002]
[1765831180432,0.11563,86200.0,86199.0,0.002]
[1765831180637,0.24361398,86202.0,86193.0,0.01160187]
[1765831180638,0.01160065,86202.0,86193.0,0.01160187]
[1765831180838,0.24361948,86200.0,86197.0,0.002]
[1765831181042,0.23202125,86199.0,86198.0,0.001]
[1765831181446,0.23204897,86189.0,86187.0,0.01160267]
[1765831181642,0.24364804,86190.0,86187.0,0.24365613]
[1765831182094,0.011602,86192.0,86188.0,0.01160254]
[1765831182289,0.03424,86193.0,86190.0,0.01160227]
[1765831182499,0.03424,86193.0,86192.0,0.23204009]
[1765831182670,0.03329,86193.0,86192.0,0.23204009]
[1765831183275,0.08188119,86198.0,86191.0,0.23204278]
[1765831183276,0.08188119,86198.0,86196.0,0.23202809]
[1765831183756,0.07028,86198.0,86196.0,0.23202809]
[1765831184163,0.07028,86198.0,86195.0,0.24363328]
[1765831184362,0.07028,86198.0,86191.0,0.01160213]
[1765831184363,0.04535,86196.0,86191.0,0.01160213]
[1765831184616,0.04535,86196.0,86188.0,0.23204867]
[1765831184617,0.2436421,86192.0,86188.0,0.23204867]
[1765831184815,0.0116016,86195.0,86191.0,0.01160213]
[1765831184978,0.23203546,86194.0,86191.0,0.01160213]
[1765831185399,0.23203778,86193.0,86186.0,0.24365684]
[1765831185615,0.01160146,86196.0,86184.0,0.01160308]
[1765831185616,0.24363345,86196.0,86193.0,0.01160187]
[1765831185938,0.24363345,86196.0,86193.0,0.24363693]
[1765831186083,0.24363345,86196.0,86194.0,0.23203444]
[1765831186287,0.24363345,86196.0,86193.0,0.24363693]
[1765831186288,0.01160119,86198.0,86193.0,0.01160187]
[1765831186504,0.07028,86203.0,86189.0,0.003]
[1765831186505,0.03424,86208.0,86195.0,0.23203042]
[1765831186710,0.23201215,86203.0,86201.0,0.01160079]
[1765831186907,0.23221036,86204.0,86195.0,0.0116016]
[1765831186908,0.01160106,86199.0,86195.0,0.0116016]
[1765831187284,0.01160052,86203.0,86198.0,0.01160119]
[1765831187443,0.00998965,86195.0,86193.0,0.01360187]
[1765831187607,0.0056941,86195.0,86194.0,0.23203471]
[1765831187845,0.01160133,86197.0,86194.0,0.24363644]
[1765831188047,0.01160133,86197.0,86195.0,0.23403105]
[1765831188281,0.24362948,86197.0,86194.0,0.24363644]
[1765831188458,0.23202982,86196.0,86193.0,0.24363437]
[1765831188674,0.23202982,86196.0,86180.0,0.9265521]
[1765831188675,0.01160267,86187.0,86177.0,0.01160402]
[1765831188879,0.23206924,86183.0,86179.0,0.23207301]
[1765831189250,0.24366386,86185.0,86180.0,0.24367414]
[1765831189650,0.09119348,86181.0,86177.0,0.01160402]
[1765831189866,0.04535,86180.0,86179.0,0.23207509]
[1765831190261,0.04535,86180.0,86179.0,0.23218949]
[1765831190802,0.27790793,86183.0,86180.0,0.24367602]
[1765831190965,0.07028,86182.0,86180.0,0.24367602]
[1765831191617,0.07028,86182.0,86179.0,0.0031144]
[1765831191618,0.04535,86181.0,86179.0,0.0011144]
[1765831191825,0.2774224,86180.0,86179.0,0.0011144]
[1765831192173,0.2774224,86180.0,86179.0,0.0001144]
[1765831192174,0.3477024,86180.0,86179.0,0.0001144]
[1765831192498,0.35359629,86180.0,86179.0,0.0001144]
[1765831193983,0.35359629,86180.0,86179.0,0.0011144]
[1765831194121,0.35359629,86180.0,86179.0,0.0001144]
[1765831195891,0.43593726,86180.0,86179.0,0.0001144]
[1765831196449,0.35359629,86180.0,86179.0,0.0001144]
[1765831198873,0.19784329,86180.0,86179.0,0.0001144]
[1765831199099,0.24319329,86180.0,86179.0,0.0001144]
[1765831200328,0.53389329,86180.0,86179.0,0.0001144]
[1765831200535,0.53389329,86180.0,86179.0,4.4e-06]
[1765831200937,0.61044059,86180.0,86179.0,4.4e-06]
[1765831201139,1.66045898,86180.0,86179.0,4.4e-06]
[1765831201616,2.02249563,86180.0,86179.0,4.4e-06]
[1765831201814,2.02249563,86180.0,86119.0,0.01161183]
[1765831201815,0.00998965,86127.0,86119.0,0.01161183]
[1765831202053,0.24382368,86128.0,86125.0,0.24382965]
[1765831202275,0.01161062,86128.0,86125.0,0.24382965]
[1765831202618,0.01161062,86128.0,86123.0,0.24383161]
[1765831202619,0.24382456,86128.0,86123.0,0.24383161]
[1765831202851,0.23221629,86127.0,86123.0,0.24383161]
[1765831203637,0.24382947,86126.0,86125.0,0.002]
[1765831204285,0.01161035,86130.0,86125.0,0.002]
[1765831204485,0.23221634,86127.0,86125.0,0.002]
[1765831206669,0.12126,86126.0,86125.0,0.003]
[1765831206847,0.12715389,86126.0,86125.0,0.003]
[1765831207059,0.41785389,86126.0,86125.0,0.003]
[1765831207291,0.12715389,86126.0,86125.0,0.003]
[1765831207493,0.01161049,86129.0,86125.0,0.003]
[1765831207700,0.25065521,86127.0,86125.0,0.003]
[1765831207900,0.25065521,86127.0,86125.0,0.002]
[1765831208107,0.01161143,86122.0,86119.0,0.23261808]
[1765831208311,0.23223286,86121.0,86119.0,0.00038158]
[1765831208524,0.0481,86120.0,86119.0,0.00038158]
[1765831209086,0.23223286,86121.0,86119.0,0.00038158]
[1765831209415,0.23223286,86121.0,86119.0,0.00238158]
[1765831209416,0.12126,86120.0,86119.0,0.00238158]
[1765831209617,0.28033409,86120.0,86119.0,0.00238158]
[1765831209815,0.23223409,86120.0,86119.0,0.00038158]
[1765831210571,0.23223409,86120.0,86119.0,0.00238158]
[1765831210791,0.24382412,86128.0,86124.0,0.24383204]
[1765831210961,0.24382412,86128.0,86120.0,0.0116117]
[1765831210962,0.01161103,86125.0,86120.0,0.0116117]
[1765831211166,0.01161076,86127.0,86123.0,0.23222575]
[1765831211383,0.24382852,86127.0,86124.0,0.23222306]
[1765831211569,0.24382852,86127.0,86120.0,0.24384534]
[1765831211570,0.2322236,86124.0,86121.0,0.23222875]
[1765831211966,0.01161103,86125.0,86121.0,0.24384031]
[1765831212151,0.01161089,86126.0,86124.0,0.23222272]
[1765831212358,0.92614771,86150.0,86124.0,0.23222272]
[1765831212359,0.00998965,86131.0,86126.0,0.01161089]
[1765831212701,0.01160995,86133.0,86130.0,0.01161035]
[1765831212896,0.02159906,86137.0,86129.0,0.01161049]
[1765831213240,0.02917,86148.0,86147.0,0.2321613]
[1765831213642,0.03674,86152.0,86151.0,0.23215052]
[1765831213770,0.01160739,86152.0,86149.0,0.24376349]
[1765831213964,0.01160739,86152.0,86149.0,0.02318]
[1765831214176,0.01160725,86153.0,86149.0,0.02318]
[1765831214373,0.01160739,86152.0,86149.0,0.02356158]
[1765831214616,0.23215052,86151.0,86149.0,0.00038158]
[1765831214815,0.23214817,86152.0,86149.0,0.23253644]
[1765831215053,0.24964372,86154.0,86151.0,0.23214994]
[1765831215235,0.01750101,86154.0,86150.0,0.24376]
[1765831215395,0.23213621,86157.0,86150.0,0.24376]
[1765831215396,0.01160658,86158.0,86153.0,0.04637]
[1765831215597,0.01160671,86157.0,86154.0,0.23214168]
[1765831215794,0.02917,86160.0,86158.0,0.23213118]
[1765831216016,0.01160658,86158.0,86154.0,0.01321999]
[1765831216195,0.0481,86155.0,86154.0,0.00161287]
[1765831216414,0.24374956,86154.0,86151.0,0.01160752]
[1765831216618,0.0481,86155.0,86151.0,0.01160752]
[1765831216619,0.0481,86155.0,86153.0,0.23214481]
[1765831216850,0.24373887,86158.0,86155.0,0.01160698]
[1765831217050,0.01160698,86155.0,86151.0,0.01160752]
[1765831217253,0.01160698,86155.0,86074.0,0.10420049]
[1765831217254,0.23215079,86151.0,86149.0,0.02356158]
[1765831217681,0.23215079,86151.0,86149.0,0.00038158]
[1765831218117,0.28025322,86150.0,86149.0,0.00038158]
[1765831218272,0.36340287,86150.0,86149.0,0.00038158]
[1765831218874,0.36340287,86150.0,86149.0,0.00238158]
[1765831219714,0.36340287,86150.0,86149.0,0.00338158]
[1765831219880,0.35341322,86150.0,86149.0,0.00338158]
[1765831220082,0.01160739,86152.0,86149.0,0.04975158]
[1765831220335,0.01160739,86152.0,86150.0,0.04637]
[1765831220512,0.01160725,86153.0,86151.0,0.23215004]
[1765831220709,0.01160725,86153.0,86149.0,0.01360223]
[1765831220710,0.23215322,86150.0,86149.0,0.00299444]
[1765831221096,0.28025322,86150.0,86149.0,0.00199444]
[1765831221733,0.1114316,86150.0,86149.0,0.00099444]
[1765831221905,0.0633316,86150.0,86149.0,0.00099444]
[1765831222090,0.1845916,86150.0,86149.0,0.00399444]
[1765831222293,0.1845916,86150.0,86149.0,0.00438158]
[1765831222294,0.28008691,86150.0,86149.0,0.00438158]
[1765831222658,0.2859808,86150.0,86149.0,0.00138158]
[1765831222863,0.19148549,86150.0,86149.0,0.00238158]
[1765831223436,0.001,86150.0,86149.0,0.00238158]
[1765831223788,0.23315322,86150.0,86149.0,0.00238158]
[1765831224087,0.35441322,86150.0,86149.0,0.00238158]
[1765831224234,0.36030711,86150.0,86149.0,0.00238158]
[1765831224805,0.45041519,86150.0,86149.0,0.00238158]
[1765831226733,0.45041519,86150.0,86149.0,0.07193158]
[1765831226734,0.001,86150.0,86149.0,0.07193158]
[1765831226936,0.01160739,86152.0,86149.0,0.02617444]
[1765831227201,0.01160739,86152.0,86149.0,0.00238158]
[1765831227202,0.28025322,86150.0,86149.0,0.00238158]
[1765831227334,0.01160712,86154.0,86149.0,0.23453627]
[1765831227551,0.01160712,86154.0,86151.0,0.01160752]
[1765831227896,0.01160698,86155.0,86152.0,0.01160739]
[1765831228107,0.01160698,86155.0,86150.0,0.03478766]
[1765831228108,0.24375285,86153.0,86150.0,0.02318]
[1765831228309,0.24375285,86153.0,86149.0,0.01298937]
[1765831228310,0.23804711,86150.0,86149.0,0.00138158]
[1765831228720,0.23804711,86150.0,86149.0,0.00038158]
[1765831228936,0.00589389,86150.0,86149.0,0.00038158]
[1765831229359,0.00589389,86150.0,86149.0,0.23253749]
[1765831229497,0.00589389,86150.0,86149.0,0.00038158]
[1765831229705,0.00589389,86150.0,86149.0,0.23453749]
[1765831229908,0.01160698,86155.0,86149.0,0.25771749]
[1765831229909,0.01160712,86154.0,86149.0,0.25771749]
[1765831230110,0.01160712,86154.0,86150.0,0.01160766]
[1765831230315,0.01160712,86154.0,86151.0,0.24575803]
[1765831230557,0.2437521,86154.0,86151.0,0.24575803]
[1765831230732,0.01160698,86155.0,86153.0,0.23214513]
[1765831230962,0.24374694,86155.0,86152.0,0.01160739]
[1765831231277,0.24374978,86154.0,86150.0,0.24376075]
[1765831231467,0.24374694,86155.0,86151.0,0.24375563]
[1765831231632,0.23215322,86150.0,86149.0,0.00238158]
[1765831231831,0.24375218,86154.0,86149.0,0.00238158]
[1765831231832,0.0458,86151.0,86149.0,0.00038158]
[1765831232018,0.01160725,86153.0,86150.0,0.25633088]
[1765831232019,0.24375262,86153.0,86150.0,0.25633088]
[1765831232419,0.01160712,86154.0,86152.0,0.23214732]
[1765831233013,0.2321457,86153.0,86151.0,0.01160752]
[1765831233425,0.24375197,86154.0,86151.0,0.24475796]
[1765831233959,0.00589389,86154.0,86152.0,0.232147]
[1765831234166,0.24375238,86153.0,86150.0,0.02318]
[1765831234369,0.00589389,86154.0,86151.0,0.24375549]
[1765831234585,0.24964563,86154.0,86151.0,0.24375765]
[1765831234788,0.24964563,86154.0,86151.0,0.24375711]
[1765831234936,0.23214562,86153.0,86152.0,0.001]
[1765831235140,0.23214562,86153.0,86151.0,0.002]
[1765831235141,0.23214513,86153.0,86151.0,0.002]
[1765831235345,0.23214783,86152.0,86151.0,0.002]
[1765831235527,0.23214783,86152.0,86151.0,0.004]
[1765831235724,0.27956783,86152.0,86151.0,0.002]
[1765831236324,0.23214783,86152.0,86149.0,0.01198937]
[1765831236530,0.23215267,86151.0,86149.0,0.23253737]
[1765831236741,0.24375577,86152.0,86149.0,0.23253737]
[1765831236941,0.23215322,86150.0,86149.0,0.00038158]
[1765831237551,0.23215322,86150.0,86149.0,0.00138158]
[1765831237935,0.23215322,86150.0,86149.0,0.00038158]
[1765831238285,0.23215322,86150.0,86149.0,0.00238158]
[1765831238702,0.35783711,86150.0,86149.0,0.00438158]
[1765831239469,0.35783711,86150.0,86149.0,0.00038158]
[1765831239848,0.35783711,86150.0,86149.0,0.00138158]
[1765831240257,0.36193287,86150.0,86149.0,0.00238158]
[1765831241301,0.06780186,86159.0,86149.0,0.04875158]
[1765831241455,0.06780186,86159.0,86150.0,0.04637]
[1765831241456,0.01160698,86155.0,86150.0,0.04637]
[1765831241656,0.01160725,86153.0,86149.0,0.01460223]
[1765831241876,0.00589389,86154.0,86151.0,0.01160752]
[1765831242227,0.01160739,86152.0,86149.0,0.01460223]
[1765831242429,0.31603322,86150.0,86149.0,0.00199444]
[1765831242631,0.26861322,86150.0,86149.0,0.00199444]
[1765831242838,0.27450711,86150.0,86149.0,0.00238158]
[1765831243122,0.00589389,86150.0,86149.0,0.00038158]
[1765831243301,0.23804711,86150.0,86149.0,0.00138158]
[1765831243507,0.23804711,86150.0,86149.0,0.00238158]
[1765831243703,0.23804711,86150.0,86149.0,0.00138158]
[1765831244026,0.23804711,86150.0,86149.0,0.00238158]
[1765831244640,0.23804711,86150.0,86149.0,0.00138158]
[1765831244990,0.23804711,86150.0,86149.0,0.00238158]
[1765831245391,0.35683711,86150.0,86149.0,0.00238158]
[1765831246030,0.00589389,86150.0,86149.0,0.00238158]
[1765831246227,0.00589389,86150.0,86149.0,0.00038158]
[1765831246228,0.32192711,86150.0,86149.0,0.00038158]
[1765831246605,0.32192711,86150.0,86149.0,0.00238158]
[1765831247392,0.01160658,86158.0,86153.0,0.23214482]
[1765831247586,0.01160658,86158.0,86149.0,0.00238158]
[1765831247587,0.23215052,86151.0,86149.0,0.00238158]
[1765831247802,0.32602287,86150.0,86149.0,0.00238158]
[1765831248042,0.39739287,86150.0,86149.0,0.00238158]
[1765831248249,0.32602287,86150.0,86149.0,0.00138158]
[1765831248449,0.39739287,86150.0,86149.0,0.00038158]
[1765831248752,0.00589389,86150.0,86149.0,0.00038158]
[1765831248949,0.23804711,86150.0,86149.0,0.00038158]
[1765831249413,0.00589389,86150.0,86149.0,0.29151528]
[1765831249561,0.00589389,86150.0,86149.0,0.29251528]
[1765831249751,0.00589389,86150.0,86149.0,0.00238158]
[1765831249950,0.00589389,86150.0,86149.0,0.23353749]
[1765831250387,0.00589389,86150.0,86149.0,0.23553749]
[1765831250912,0.00589389,86150.0,86149.0,0.23453749]
[1765831251090,0.23213647,86157.0,86154.0,0.2321406]
[1765831251265,0.23213742,86156.0,86153.0,0.24375169]
[1765831251469,0.23213742,86156.0,86149.0,0.05229444]
[1765831251470,0.23214349,86154.0,86149.0,0.01760223]
[1765831251697,0.24374956,86154.0,86151.0,0.23214946]
[1765831252078,0.24964345,86154.0,86151.0,0.23214946]
[1765831252275,0.01160725,86153.0,86150.0,0.2437602]
[1765831252499,0.01160725,86153.0,86151.0,0.23215006]
[1765831252718,0.01160725,86153.0,86149.0,0.00099444]
[1765831252719,0.23215322,86150.0,86149.0,0.00099444]
[1765831253116,0.23215322,86150.0,86149.0,0.00038158]
[1765831253328,0.35683711,86150.0,86149.0,0.00038158]
[1765831253642,0.47161364,86150.0,86149.0,0.00038158]
[1765831253814,0.78075364,86150.0,86149.0,0.00038158]
[1765831254014,0.8118155,86150.0,86149.0,0.00038158]
[1765831254236,0.83077203,86150.0,86149.0,0.00038158]
[1765831254433,0.23224876,86115.0,86113.0,0.03109931]
[1765831254636,0.23814265,86115.0,86113.0,0.00011379]
[1765831254980,0.00589389,86115.0,86114.0,0.23225027]
[1765831255180,0.00589389,86115.0,86113.0,0.2323642]
[1765831255339,0.00589389,86115.0,86114.0,0.23225027]
[1765831255577,0.00589389,86115.0,86113.0,0.2373642]
[1765831255746,0.00589389,86115.0,86113.0,0.2323642]
[1765831255948,0.00589389,86115.0,86113.0,0.00011379]
[1765831256135,0.00589389,86115.0,86113.0,0.2323655]
[1765831256339,0.23814176,86115.0,86113.0,0.00311379]
[1765831256536,0.00589389,86115.0,86113.0,0.00311379]
[1765831256746,0.00589389,86115.0,86113.0,0.23536596]
[1765831256946,0.23814179,86115.0,86113.0,0.00311379]
[1765831257148,0.00589389,86115.0,86113.0,0.23536638]
[1765831257349,0.00589389,86115.0,86114.0,0.004]
[1765831257561,0.00589389,86115.0,86114.0,0.23625027]
[1765831257767,0.00589389,86115.0,86114.0,0.23225027]
[1765831257987,0.00589389,86115.0,86113.0,0.00411379]
[1765831258160,0.23225027,86114.0,86113.0,0.00411379]
[1765831258362,0.00589389,86115.0,86113.0,0.23536639]
[1765831258563,0.00589389,86115.0,86114.0,0.004]
[1765831258765,0.23814146,86115.0,86114.0,0.004]
[1765831259152,0.23814146,86115.0,86113.0,0.00311379]
[1765831259153,0.23814416,86114.0,86113.0,0.00311379]
[1765831259362,0.35793416,86114.0,86113.0,0.00011379]
[1765831259757,0.35793416,86114.0,86113.0,0.00311379]
[1765831260542,0.35793416,86114.0,86113.0,0.00611379]
[1765831260762,0.35793416,86114.0,86113.0,0.23536675]
[1765831260763,0.01098965,86114.0,86113.0,0.23536675]
[1765831260989,0.23325027,86114.0,86113.0,0.04429379]
[1765831261133,0.23914416,86114.0,86113.0,0.00111379]
[1765831261335,0.23914416,86114.0,86113.0,0.00311379]
[1765831261541,0.23325027,86114.0,86113.0,0.00311379]
[1765831261760,0.28656416,86114.0,86113.0,0.00011379]
[1765831261966,0.32278228,86114.0,86113.0,0.00011379]
[1765831262187,0.28656416,86114.0,86113.0,0.00211379]
[1765831263342,0.29065992,86114.0,86113.0,0.00211379]
[1765831263878,0.28656416,86114.0,86113.0,0.00211379]
[1765831265641,0.34873027,86114.0,86113.0,0.00211379]
[1765831265990,0.47095531,86114.0,86113.0,0.00211379]
[1765831266647,0.47095531,86114.0,86113.0,0.00111379]
[1765831267029,0.47095531,86114.0,86113.0,0.00011379]
[1765831267808,0.35462416,86114.0,86113.0,0.00011379]
[1765831268205,0.35562416,86114.0,86113.0,0.00011379]
[1765831268742,0.001,86114.0,86113.0,0.00011379]
[1765831268902,0.23225027,86114.0,86113.0,0.00011379]
[1765831269476,0.23814416,86114.0,86113.0,0.00011379]
[1765831270415,0.00589389,86114.0,86113.0,0.23336675]
[1765831270754,0.00589389,86114.0,86113.0,0.27624675]
[1765831271141,0.32,86115.0,86114.0,0.23225027]
[1765831271347,0.32,86115.0,86114.0,0.31616313]
[1765831273008,0.32,86115.0,86114.0,0.31816313]
[1765831273203,0.32,86115.0,86114.0,0.32016313]
[1765831273845,0.32,86115.0,86114.0,0.31616313]
[1765831274047,0.32,86115.0,86114.0,0.32316313]
[1765831278933,0.55224757,86115.0,86114.0,0.04926286]
[1765831279250,0.64960085,86115.0,86114.0,0.007]
[1765831279392,0.65649474,86115.0,86114.0,0.007]
[1765831279755,0.65649474,86115.0,86114.0,0.004]
[1765831279756,0.7286505,86115.0,86114.0,0.004]
[1765831279909,0.23814416,86114.0,86113.0,0.00011379]
[1765831280076,0.43940836,86114.0,86113.0,0.00011379]
[1765831281301,0.01161426,86101.0,86098.0,0.01161467]
[1765831281808,0.01161426,86101.0,86096.0,0.0004]
[1765831281809,0.23229522,86098.0,86096.0,0.0004]
[1765831282014,0.23229343,86098.0,86096.0,0.00051447]
[1765831282252,0.23229613,86097.0,86096.0,0.00051447]
[1765831282900,0.24228578,86097.0,86096.0,0.00051447]
[1765831283783,0.00998965,86097.0,86096.0,0.03948447]
[1765831283916,0.24228578,86097.0,86096.0,0.04048447]
[1765831284117,0.01161453,86099.0,86096.0,0.04148447]
[1765831284366,0.23229348,86098.0,86096.0,0.04148447]
[1765831284560,0.24390533,86099.0,86096.0,0.27378271]
[1765831284737,0.23228897,86100.0,86098.0,0.03875]
[1765831285057,0.00998965,86101.0,86098.0,0.27104334]
[1765831285631,0.00998965,86101.0,86098.0,0.28265801]
[1765831285877,0.00998965,86101.0,86098.0,0.03875]
[1765831285878,0.02160391,86101.0,86098.0,0.03875]
[1765831286028,0.23229343,86098.0,86096.0,0.00251447]
[1765831286230,0.23229613,86097.0,86096.0,0.00251447]
[1765831286436,0.23229613,86097.0,86096.0,0.00051447]
[1765831286773,0.39960328,86097.0,86096.0,0.00051447]
[1765831287076,0.35235002,86097.0,86096.0,0.00051447]
[1765831287277,0.28429002,86097.0,86096.0,0.00251447]
[1765831287454,0.35235002,86097.0,86096.0,0.00251447]
[1765831287657,0.28429002,86097.0,86096.0,0.00251447]
[1765831287823,0.23819002,86097.0,86096.0,0.00251447]